Workbook

Sheet Dane
A1: data | B1: ccc_d.csv | C1: cdr_d.csv | D1: lpp_d.csv | E1: peo_d.csv | F1: pkn_d.csv | G1: pko_d.csv | H1: pzu_d.csv | I1: wig_d.csv | S1: Własna funkcja
A2: 2010-09-30 | B2: 49.787 | C2: 2.9918 | D2: 1635.77 | E2: 103.92 | F2: 31.503 | G2: 34.274 | H2: 21.586 | I2: 45236.72 | J2: ccc_d.csv | K2: cdr_d.csv | L2: lpp_d.csv | M2: peo_d.csv | N2: pkn_d.csv | O2: pko_d.csv | P2: pzu_d.csv | Q2: wig_d.csv | T2: =J2:Q2 -> ccc_d.csv | U2: cdr_d.csv | V2: lpp_d.csv | W2: peo_d.csv | X2: pkn_d.csv | Y2: pko_d.csv | Z2: pzu_d.csv | AA2: wig_d.csv
A3: 2010-10-31 | B3: 53.597 | C3: 2.3542 | D3: 1731.15 | E3: 112.56 | F3: 31.668 | G3: 36.531 | H3: 19.907 | I3: 46229.6 | J3: =B3/B2-1 -> 0.07652600076 | K3: =C3/C2-1 -> -0.21311585 | L3: 0.05830893096 | M3: 0.0831408776 | N3: 0.005237596419 | O3: 0.06585166599 | P3: -0.07778189567 | Q3: 0.02194854092 | S3: =TRANSPOSE(T2:AA2) -> ccc_d.csv | T3: =Korelacje(J3:Q121) -> 1 | U3: 0.1871527902 | V3: 0.5018390324 | W3: 0.3733154257 | X3: 0.3340796491 | Y3: 0.3713469993 | Z3: 0.2264633691 | AA3: 0.6318380682
A4: 2010-11-30 | B4: 53.682 | C4: 2.6877 | D4: 1872.02 | E4: 109.96 | F4: 34.023 | G4: 34.906 | H4: 18.685 | I4: 45361.07 | J4: =B4/B3-1 -> 0.001585909659 | K4: =C4/C3-1 -> 0.141661711 | L4: =D4/D3-1 -> 0.08137365335 | M4: =E4/E3-1 -> -0.02309879176 | N4: =F4/F3-1 -> 0.07436528988 | O4: =G4/G3-1 -> -0.04448276806 | P4: =H4/H3-1 -> -0.06138544231 | Q4: =I4/I3-1 -> -0.01878731376 | S4: cdr_d.csv | T4: 0.1871527902 | U4: 1 | V4: 0.1263476927 | W4: 0.1708944172 | X4: 0.2613433054 | Y4: 0.1959683949 | Z4: 0.1477100898 | AA4: 0.4155181769
A5: 2010-12-31 | B5: 58.875 | C5: 3.0408 | D5: 1929.94 | E5: 108.15 | F5: 36.07 | G5: 35.192 | H5: 18.717 | I5: 47489.91 | J5: 0.0967363362 | K5: 0.1313762697 | L5: 0.03093984039 | M5: -0.0164605311 | N5: 0.06016518238 | O5: 0.008193433794 | P5: 0.001712603693 | Q5: 0.04693099171 | S5: lpp_d.csv | T5: 0.5018390324 | U5: 0.1263476927 | V5: 1 | W5: 0.1774871319 | X5: 0.3285325047 | Y5: 0.2381742595 | Z5: 0.3739526048 | AA5: 0.4957689557
A6: 2011-01-31 | B6: 55.411 | C6: 4.8555 | D6: 1843.47 | E6: 103.32 | F6: 37.566 | G6: 33.405 | H6: 18.163 | I6: 47156.76 | J6: -0.05883651805 | K6: 0.5967837411 | L6: -0.04480450169 | M6: -0.04466019417 | N6: 0.0414749099 | O6: -0.05077858604 | P6: -0.02959876049 | Q6: -0.007015174381 | S6: peo_d.csv | T6: 0.3733154257 | U6: 0.1708944172 | V6: 0.1774871319 | W6: 1 | X6: 0.4021626119 | Y6: 0.7467310461 | Z6: 0.4640577326 | AA6: 0.6917753232
A7: 2011-02-28 | B7: 51.864 | C7: 5.807 | D7: 1854.18 | E7: 99.319 | F7: 35.914 | G7: 34.087 | H7: 18.289 | I7: 47540.91 | J7: -0.06401256068 | K7: 0.1959633405 | L7: 0.005809695845 | M7: -0.03872435153 | N7: -0.04397593569 | O7: 0.02041610537 | P7: 0.006937179981 | Q7: 0.008146233965 | S7: pkn_d.csv | T7: 0.3340796491 | U7: 0.2613433054 | V7: 0.3285325047 | W7: 0.4021626119 | X7: 1 | Y7: 0.4367767187 | Z7: 0.4772424408 | AA7: 0.629572045
A8: 2011-03-31 | B8: 51.517 | C8: 8.0436 | D8: 1836.35 | E8: 102.82 | F8: 41.465 | G8: 35.475 | H8: 18.742 | I8: 48729.83 | J8: -0.006690575351 | K8: 0.3851558464 | L8: -0.009616110626 | M8: 0.03525005286 | N8: 0.1545636799 | O8: 0.04071933582 | P8: 0.02476898682 | Q8: 0.02500835596 | S8: pko_d.csv | T8: 0.3713469993 | U8: 0.1959683949 | V8: 0.2381742595 | W8: 0.7467310461 | X8: 0.4367767187 | Y8: 1 | Z8: 0.4961841517 | AA8: 0.7322045217
A9: 2011-04-30 | B9: 51.087 | C9: 8.9166 | D9: 1916.59 | E9: 105.12 | F9: 43.553 | G9: 37.098 | H9: 19.637 | I9: 50008.98 | J9: -0.008346759322 | K9: 0.1085334925 | L9: 0.04369537398 | M9: 0.02236918887 | N9: 0.05035572169 | O9: 0.04575052854 | P9: 0.04775370825 | Q9: 0.02624983506 | S9: pzu_d.csv | T9: 0.2264633691 | U9: 0.1477100898 | V9: 0.3739526048 | W9: 0.4640577326 | X9: 0.4772424408 | Y9: 0.4961841517 | Z9: 1 | AA9: 0.633774022
A10: 2011-05-31 | B10: 49.31 | C10: 8.7596 | D10: 2103.79 | E10: 106.77 | F10: 42.529 | G10: 35.69 | H10: 20.479 | I10: 50025.61 | J10: -0.03478380018 | K10: -0.01760760828 | L10: 0.09767347216 | M10: 0.01569634703 | N10: -0.02351158359 | O10: -0.03795352849 | P10: 0.04287824006 | Q10: 0.0003325402758 | S10: wig_d.csv | T10: 0.6318380682 | U10: 0.4155181769 | V10: 0.4957689557 | W10: 0.6917753232 | X10: 0.629572045 | Y10: 0.7322045217 | Z10: 0.633774022 | AA10: 1
A11: 2011-06-30 | B11: 49.785 | C11: 7.3568 | D11: 1996.82 | E11: 102.06 | F11: 40.757 | G11: 34.094 | H11: 19.742 | I11: 48414.36 | J11: 0.009632934496 | K11: -0.1601442988 | L11: -0.05084632972 | M11: -0.04411351503 | N11: -0.04166568694 | O11: -0.04471840852 | P11: -0.03598808536 | Q11: -0.0322085028 | S11: Analysis Toolpak
A12: 2011-07-31 | B12: 48.484 | C12: 6.6702 | D12: 1992.34 | E12: 100.24 | F12: 36.842 | G12: 33.381 | H12: 19.954 | I12: 47152.63 | J12: -0.02613236919 | K12: -0.09332862114 | L12: -0.002243567272 | M12: -0.01783264746 | N12: -0.09605711902 | O12: -0.02091277058 | P12: 0.010738527 | Q12: -0.02606106948 | T12: ccc_d.csv | U12: cdr_d.csv | V12: lpp_d.csv | W12: peo_d.csv | X12: pkn_d.csv | Y12: pko_d.csv | Z12: pzu_d.csv | AA12: wig_d.csv
A13: 2011-08-31 | B13: 38.356 | C13: 5.0026 | D13: 1836.35 | E13: 93.06 | F13: 31.181 | G13: 31.116 | H13: 18.688 | I13: 42222.38 | J13: -0.2088936556 | K13: -0.250007496 | L13: -0.07829486935 | M13: -0.07162809258 | N13: -0.1536561533 | O13: -0.06785297025 | P13: -0.06344592563 | Q13: -0.1045593851 | S13: ccc_d.csv | T13: 1
A14: 2011-09-30 | B14: 38.041 | C14: 3.5117 | D14: 1832.2 | E14: 84.44 | F14: 28.738 | G14: 28.239 | H14: 17.941 | I14: 38268.75 | J14: -0.008212535197 | K14: -0.298025027 | L14: -0.002259917772 | M14: -0.09262841178 | N14: -0.07834899458 | O14: -0.0924604705 | P14: -0.03997217466 | Q14: -0.09363825535 | S14: cdr_d.csv | T14: 0.1871527902 | U14: 1
A15: 2011-10-31 | B15: 39.487 | C15: 5.3558 | D15: 1924.97 | E15: 93.121 | F15: 31.07 | G15: 31.158 | H15: 19.222 | I15: 41160.66 | J15: 0.03801161904 | K15: 0.5251302788 | L15: 0.05063311866 | M15: 0.1028067267 | N15: 0.08114691349 | O15: 0.103367683 | P15: 0.0714007023 | Q15: 0.07556844684 | S15: lpp_d.csv | T15: 0.5018390324 | U15: 0.1263476927 | V15: 1
A16: 2011-11-30 | B16: 39.925 | C16: 4.9537 | D16: 1873.01 | E16: 92.054 | F16: 31.652 | G16: 28.684 | H16: 18.192 | I16: 39502.02 | J16: 0.01109225821 | K16: -0.07507748609 | L16: -0.02699262846 | M16: -0.01145821029 | N16: 0.01873189572 | O16: -0.07940175878 | P16: -0.0535844345 | Q16: -0.04029672994 | S16: peo_d.csv | T16: 0.3733154257 | U16: 0.1708944172 | V16: 0.1774871319 | W16: 1
A17: 2011-12-31 | B17: 42.17 | C17: 5.1694 | D17: 1870.23 | E17: 88.846 | F17: 26.698 | G17: 27.568 | H17: 17.598 | I17: 37595.44 | J17: 0.05623043206 | K17: 0.04354321013 | L17: -0.001484241942 | M17: -0.0348491103 | N17: -0.1565145962 | O17: -0.03890670757 | P17: -0.03265171504 | Q17: -0.04826537985 | S17: pkn_d.csv | T17: 0.3340796491 | U17: 0.2613433054 | V17: 0.3285325047 | W17: 0.4021626119 | X17: 1
A18: 2012-01-31 | B18: 44.758 | C18: 5.9542 | D18: 1871.16 | E18: 99.159 | F18: 28.918 | G18: 29.916 | H18: 19.029 | I18: 40927.75 | J18: 0.06137064264 | K18: 0.1518164584 | L18: 0.0004972650423 | M18: 0.1160772573 | N18: 0.08315229605 | O18: 0.085171213 | P18: 0.08131605864 | Q18: 0.08863601543 | S18: pko_d.csv | T18: 0.3713469993 | U18: 0.1959683949 | V18: 0.2381742595 | W18: 0.7467310461 | X18: 0.4367767187 | Y18: 1
A19: 2012-02-29 | B19: 47.999 | C19: 5.758 | D19: 2245.01 | E19: 97.139 | F19: 27.976 | G19: 29.184 | H19: 19.075 | I19: 41560.55 | J19: 0.07241163591 | K19: -0.03295153001 | L19: 0.1997958486 | M19: -0.02037132282 | N19: -0.03257486686 | O19: -0.02446851183 | P19: 0.002417362972 | Q19: 0.01546139233 | S19: pzu_d.csv | T19: 0.2264633691 | U19: 0.1477100898 | V19: 0.3739526048 | W19: 0.4640577326 | X19: 0.4772424408 | Y19: 0.4961841517 | Z19: 1
A20: 2012-03-31 | B20: 51.54 | C20: 6.788 | D20: 2444.48 | E20: 97.515 | F20: 29.415 | G20: 28.845 | H20: 18.51 | I20: 41267.16 | J20: 0.07377237026 | K20: 0.1788815561 | L20: 0.08885038374 | M20: 0.003870741927 | N20: 0.05143694595 | O20: -0.01161595395 | P20: -0.02961992136 | Q20: -0.007059338724 | S20: wig_d.csv | T20: 0.6318380682 | U20: 0.4155181769 | V20: 0.4957689557 | W20: 0.6917753232 | X20: 0.629572045 | Y20: 0.7322045217 | Z20: 0.633774022 | AA20: 1
A21: 2012-04-30 | B21: 51.902 | C21: 5.4441 | D21: 2634.65 | E21: 93.56 | F21: 28.975 | G21: 29.014 | H21: 18.157 | I21: 40273.65 | J21: 0.007023670935 | K21: -0.1979817325 | L21: 0.07779568661 | M21: -0.04055786289 | N21: -0.01495835458 | O21: 0.005858901023 | P21: -0.01907077256 | Q21: -0.02407507568
A22: 2012-05-31 | B22: 47.642 | C22: 4.5122 | D22: 2690.3 | E22: 88.723 | F22: 26.187 | G22: 27.47 | H22: 16.859 | I22: 37793.58 | J22: -0.08207776194 | K22: -0.1711761356 | L22: 0.02112235022 | M22: -0.05169944421 | N22: -0.09622088007 | O22: -0.05321568898 | P22: -0.07148758055 | Q22: -0.06158046266
A23: 2012-06-30 | B23: 52.937 | C23: 5.0321 | D23: 3006.19 | E23: 99.046 | F23: 29.463 | G23: 30.899 | H23: 19.022 | I23: 40810.88 | J23: 0.1111414298 | K23: 0.1152209565 | L23: 0.1174181318 | M23: 0.1163508898 | N23: 0.1251002406 | O23: 0.1248270841 | P23: 0.1282994246 | Q23: 0.07983631082
A24: 2012-07-31 | B24: 52.04 | C24: 4.4043 | D24: 3144.88 | E24: 91.39 | F24: 28.195 | G24: 29.024 | H24: 20.162 | I24: 40163.91 | J24: -0.01694467008 | K24: -0.1247590469 | L24: 0.04613480851 | M24: -0.07729741736 | N24: -0.04303702949 | O24: -0.06068157546 | P24: 0.05993060667 | Q24: -0.01585288041
A25: 2012-08-31 | B25: 50.246 | C25: 4.3651 | D25: 2875.84 | E25: 98.445 | F25: 30.755 | G25: 31.792 | H25: 20.981 | I25: 41573.57 | J25: -0.03447348194 | K25: -0.008900392798 | L25: -0.08554857419 | M25: 0.07719662983 | N25: 0.09079624047 | O25: 0.0953693495 | P25: 0.04062097014 | Q25: 0.03509767849
A26: 2012-09-30 | B26: 51.201 | C26: 5.1106 | D26: 3235.03 | E26: 103.16 | F26: 35.834 | G26: 31.792 | H26: 21.862 | I26: 43739.81 | J26: 0.01900648808 | K26: 0.1707864654 | L26: 0.1248991599 | M26: 0.04789476357 | N26: 0.165143879 | O26: 0 | P26: 0.04199037224 | Q26: 0.05210618188
A27: 2012-10-31 | B27: 54.157 | C27: 5.1694 | D27: 3748.83 | E27: 100.22 | F27: 34.495 | G27: 31.871 | H27: 22.651 | I27: 43232.44 | J27: 0.0577332474 | K27: 0.01150549838 | L27: 0.1588238749 | M27: -0.02849941838 | N27: -0.03736674667 | O27: 0.002484901862 | P27: 0.03609001921 | Q27: -0.01159973031
A28: 2012-11-30 | B28: 65.246 | C28: 5.9639 | D28: 4137.98 | E28: 103.09 | F28: 35.992 | G28: 31.077 | H28: 23.969 | I28: 45014.74 | J28: 0.2047565412 | K28: 0.1536928851 | L28: 0.1038057207 | M28: 0.0286369986 | N28: 0.04339759385 | O28: -0.02491293025 | P28: 0.0581872765 | Q28: 0.04122598678
A29: 2012-12-31 | B29: 67.465 | C29: 6.0817 | D29: 4329.24 | E29: 109.5 | F29: 38.985 | G29: 32.953 | H29: 26.539 | I29: 47460.59 | J29: 0.03400974772 | K29: 0.01975217559 | L29: 0.04622061972 | M29: 0.06217867882 | N29: 0.0831573683 | O29: 0.06036618721 | P29: 0.1072218282 | Q29: 0.05433442468
A30: 2013-01-31 | B30: 66.54 | C30: 6.5917 | D30: 4614.68 | E30: 99.51 | F30: 38.591 | G30: 30.925 | H30: 24.747 | I30: 46840.15 | J30: -0.01371081301 | K30: 0.08385813177 | L30: 0.0659330506 | M30: -0.09123287671 | N30: -0.0101064512 | O30: -0.06154219646 | P30: -0.06752326764 | Q30: -0.01307274098
A31: 2013-02-28 | B31: 65.34 | C31: 7.1901 | D31: 4473.85 | E31: 104.86 | F31: 42.253 | G31: 31.792 | H31: 24.467 | I31: 46280.36 | J31: -0.0180342651 | K31: 0.09078083044 | L31: -0.03051782572 | M31: 0.05376344086 | N31: 0.09489259154 | O31: 0.02803556993 | P31: -0.01131450277 | Q31: -0.01195107189
A32: 2013-03-31 | B32: 65.433 | C32: 6.7389 | D32: 5375.87 | E32: 102.63 | F32: 40.481 | G32: 30.854 | H32: 24.535 | I32: 45147.57 | J32: 0.001423324151 | K32: -0.06275295198 | L32: 0.2016205282 | M32: -0.02126645051 | N32: -0.04193785057 | O32: -0.02950427781 | P32: 0.002779253689 | Q32: -0.02447668946
A33: 2013-04-30 | B33: 67.465 | C33: 7.3961 | D33: 6089.47 | E33: 99.046 | F33: 38.594 | G33: 29.38 | H33: 26.447 | I33: 44162.18 | J33: 0.03105466661 | K33: 0.09752333467 | L33: 0.1327413051 | M33: -0.0349215629 | N33: -0.04661446111 | O33: -0.04777338433 | P33: 0.07792948849 | Q33: -0.02182598089
A34: 2013-05-31 | B34: 72.914 | C34: 8.6223 | D34: 6403.45 | E34: 108.68 | F34: 41.743 | G34: 31.085 | H34: 27.935 | I34: 47806.34 | J34: 0.08076780553 | K34: 0.1657900786 | L34: 0.0515611375 | M34: 0.09726793611 | N34: 0.08159299373 | O34: 0.05803267529 | P34: 0.05626347034 | Q34: 0.08251766557
A35: 2013-06-30 | B35: 78.556 | C35: 9.0735 | D35: 6232.17 | E35: 103.22 | F35: 36.702 | G35: 31.792 | H35: 24.881 | I35: 44747.79 | J35: 0.07737882985 | K35: 0.05232942486 | L35: -0.02674808111 | M35: -0.05023923445 | N35: -0.1207627626 | O35: 0.02274408879 | P35: -0.1093252193 | Q35: -0.0639779159
A36: 2013-07-31 | B36: 86.872 | C36: 10.496 | D36: 6636.57 | E36: 112.87 | F36: 35.355 | G36: 33.22 | H36: 27.546 | I36: 46925.65 | J36: 0.1058607872 | K36: 0.1567752246 | L36: 0.06488911567 | M36: 0.09348963379 | N36: -0.03670099722 | O36: 0.04491696024 | P36: 0.1071098429 | Q36: 0.04866966614
A37: 2013-08-31 | B37: 90.616 | C37: 12.134 | D37: 7450.09 | E37: 119.74 | F37: 36.607 | G37: 34.211 | H37: 28.432 | I37: 48871.98 | J37: 0.04309789115 | K37: 0.1560594512 | L37: 0.1225813937 | M37: 0.06086648357 | N37: 0.03541224721 | O37: 0.02983142685 | P37: 0.03216437958 | Q37: 0.0414768895
A38: 2013-09-30 | B38: 105.66 | C38: 14.576 | D38: 8317.7 | E38: 122.84 | F38: 35.924 | G38: 34.779 | H38: 27.532 | I38: 50301.85 | J38: 0.166019246 | K38: 0.2012526784 | L38: 0.1164563113 | M38: 0.02588942709 | N38: -0.01865763379 | O38: 0.01660284704 | P38: -0.03165447383 | Q38: 0.02925746
A39: 2013-10-31 | B39: 121.88 | C39: 15.204 | D39: 8654.24 | E39: 132.81 | F39: 35.396 | G39: 38.294 | H39: 30.434 | I39: 53607.86 | J39: 0.1535112625 | K39: 0.0430845225 | L39: 0.04046070428 | M39: 0.08116248779 | N39: -0.01469769513 | O39: 0.1010667357 | P39: 0.1054046201 | Q39: 0.06572342767
A40: 2013-11-30 | B40: 111.76 | C40: 16.43 | D40: 8827.33 | E40: 129.62 | F40: 38.976 | G40: 38.576 | H40: 31.845 | I40: 54704.89 | J40: -0.08303249097 | K40: 0.08063667456 | L40: 0.02000060086 | M40: -0.02401927566 | N40: 0.1011413719 | O40: 0.007364077923 | P40: 0.04636262075 | Q40: 0.02046397674
A41: 2013-12-31 | B41: 109.33 | C41: 17.206 | D41: 8654.24 | E41: 123.52 | F41: 33.362 | G41: 36.953 | H41: 30.418 | I41: 51284.25 | J41: -0.02174302076 | K41: 0.04723067559 | L41: -0.01960842067 | M41: -0.04706063879 | N41: -0.1440373563 | O41: -0.04207279137 | P41: -0.04481080232 | Q41: -0.06252896222
A42: 2014-01-31 | B42: 111.58 | C42: 17.99 | D42: 8461.92 | E42: 127.42 | F42: 31.564 | G42: 38.247 | H42: 27.949 | I42: 50831.61 | J42: 0.02057989573 | K42: 0.04556550041 | L42: -0.02222263307 | M42: 0.0315738342 | N42: -0.05389365146 | O42: 0.0350174546 | P42: -0.08116904464 | Q42: -0.008826101581
A43: 2014-02-28 | B43: 123.3 | C43: 17.166 | D43: 9615.82 | E43: 132.81 | F43: 35.558 | G43: 41.387 | H43: 29.876 | I43: 53811.3 | J43: 0.1050367449 | K43: -0.04580322401 | L43: 0.1363638512 | M43: 0.04230105164 | N43: 0.1265365606 | O43: 0.08209794232 | P43: 0.06894701063 | Q43: 0.05861883973
A44: 2014-03-31 | B44: 122.83 | C44: 15.028 | D44: 8546.55 | E44: 135.3 | F44: 35.168 | G44: 39.822 | H44: 29.102 | I44: 52373.47 | J44: -0.003811841038 | K44: -0.1245485262 | L44: -0.1111990449 | M44: 0.01874858821 | N44: -0.01096799595 | O44: -0.03781380627 | P44: -0.02590708261 | Q44: -0.02671985252
A45: 2014-04-30 | B45: 119.07 | C45: 14.704 | D45: 7538.79 | E45: 133.4 | F45: 36.86 | G45: 38.903 | H45: 29.081 | I45: 51892.77 | J45: -0.03061141415 | K45: -0.02155975512 | L45: -0.1179142461 | M45: -0.0140428677 | N45: 0.04811191993 | O45: -0.02307769575 | P45: -0.00072159989 | Q45: -0.00917831108
A46: 2014-05-31 | B46: 112.97 | C46: 14.91 | D46: 8029.21 | E46: 127.66 | F46: 34.321 | G46: 38.06 | H46: 30.246 | I46: 52066.97 | J46: -0.05123036869 | K46: 0.01400979325 | L46: 0.06505287984 | M46: -0.04302848576 | N46: -0.06888225719 | O46: -0.02166928 | P46: 0.04006052061 | Q46: 0.003356922361
A47: 2014-06-30 | B47: 106.41 | C47: 14.949 | D47: 8077.29 | E47: 126.19 | F47: 34.517 | G47: 35.342 | H47: 30.066 | I47: 51934.94 | J47: -0.05806851376 | K47: 0.002615694165 | L47: 0.005988135819 | M47: -0.01151496162 | N47: 0.005710789313 | O47: -0.07141355754 | P47: -0.005951200159 | Q47: -0.002535772679
A48: 2014-07-31 | B48: 102.96 | C48: 15.008 | D48: 7500.34 | E48: 120.48 | F48: 31.15 | G48: 33.372 | H48: 29.812 | I48: 50037.12 | J48: -0.03242176487 | K48: 0.003946752291 | L48: -0.07142865986 | M48: -0.04524922736 | N48: -0.09754613669 | O48: -0.05574104465 | P48: -0.008448080889 | Q48: -0.03654225845
A49: 2014-08-31 | B49: 111.58 | C49: 15.204 | D49: 8173.46 | E49: 130.72 | F49: 33.196 | G49: 35.857 | H49: 31.777 | I49: 51868.77 | J49: 0.08372183372 | K49: 0.01305970149 | L49: 0.08974526488 | M49: 0.08499335989 | N49: 0.06568218299 | O49: 0.0744636222 | P49: 0.06591305515 | Q49: 0.03660582384
A50: 2014-09-30 | B50: 121.26 | C50: 16.273 | D50: 9619.03 | E50: 140.96 | F50: 34.727 | G50: 37.892 | H50: 34.989 | I50: 54878.58 | J50: 0.08675389855 | K50: 0.07031044462 | L50: 0.1768614516 | M50: 0.07833537332 | N50: 0.04612001446 | O50: 0.05675321416 | P50: 0.101079397 | Q50: 0.05802740262
A51: 2014-10-31 | B51: 122.58 | C51: 16.382 | D51: 9763.81 | E51: 127.81 | F51: 35.3 | G51: 35.781 | H51: 36.697 | I51: 53949.58 | J51: 0.01088570015 | K51: 0.006698211762 | L51: 0.01505141371 | M51: -0.09328887628 | N51: 0.01650012958 | O51: -0.05571096801 | P51: 0.04881534196 | Q51: -0.01692828058
A52: 2014-11-30 | B52: 138.05 | C52: 17.196 | D52: 8589.13 | E52: 134.17 | F52: 38.028 | G52: 35.877 | H52: 34.88 | I52: 53247.07 | J52: 0.1262032958 | K52: 0.0496886827 | L52: -0.1203095923 | M52: 0.04976136453 | N52: 0.07728045326 | O52: 0.002682988178 | P52: -0.04951358422 | Q52: -0.01302160276
A53: 2014-12-31 | B53: 126.66 | C53: 16.382 | D53: 7029.29 | E53: 129.71 | F53: 41.184 | G53: 34.166 | H53: 35.315 | I53: 51416.08 | J53: -0.08250633828 | K53: -0.0473365899 | L53: -0.1816062861 | M53: -0.03324141015 | N53: 0.08299147996 | O53: -0.04769072107 | P53: 0.01247133028 | Q53: -0.03438668081
A54: 2015-01-31 | B54: 146.11 | C54: 15.891 | D54: 7296.37 | E54: 129.9 | F54: 46.178 | G54: 32.81 | H54: 36.665 | I54: 52102.39 | J54: 0.1535607137 | K54: -0.0299719204 | L54: 0.03799530251 | M54: 0.001464806106 | N54: 0.1212606838 | O54: -0.03968857929 | P54: 0.03822738213 | Q54: 0.01334815879
A55: 2015-02-28 | B55: 172.35 | C55: 17.313 | D55: 7024.43 | E55: 134.68 | F55: 45.975 | G55: 31.147 | H55: 35.513 | I55: 53304.21 | J55: 0.1795907193 | K55: 0.08948461393 | L55: -0.03727058798 | M55: 0.03679753657 | N55: -0.004396032743 | O55: -0.05068576653 | P55: -0.03141960998 | Q55: 0.02306650424
A56: 2015-03-31 | B56: 173.53 | C56: 19.305 | D56: 6873.82 | E56: 133.41 | F56: 49.882 | G56: 32.485 | H56: 35.535 | I56: 54091.32 | J56: 0.006846533217 | K56: 0.1150580489 | L56: -0.02144088559 | M56: -0.00942975943 | N56: 0.08498096792 | O56: 0.04295758821 | P56: 0.0006194914538 | Q56: 0.01476637586
A57: 2015-04-30 | B57: 180.76 | C57: 20.295 | D57: 7432.89 | E57: 136.1 | F57: 57.653 | G57: 34.492 | H57: 34.151 | I57: 56477.69 | J57: 0.04166426554 | K57: 0.05128205128 | L57: 0.08133323247 | M57: 0.02016340604 | N57: 0.1557876589 | O57: 0.06178236109 | P57: -0.03894751653 | Q57: 0.04411742956
A58: 2015-05-31 | B58: 174.39 | C58: 23.777 | D58: 7513.54 | E58: 136.02 | F58: 59.48 | G58: 31.223 | H58: 32.556 | I58: 55531.79 | J58: -0.03524009737 | K58: 0.1715693521 | L58: 0.01085042292 | M58: -0.000587803086 | N58: 0.03168959117 | O58: -0.09477560014 | P58: -0.04670434248 | Q58: -0.01674820624
A59: 2015-06-30 | B59: 165.09 | C59: 23.326 | D59: 6458.93 | E59: 138.23 | F59: 63.683 | G59: 29.733 | H59: 31.44 | I59: 53328.98 | J59: -0.05332874591 | K59: -0.01896791017 | L59: -0.1403612678 | M59: 0.01624761065 | N59: 0.07066240753 | O59: -0.04772123114 | P59: -0.0342793955 | Q59: -0.03966754898
A60: 2015-07-31 | B60: 183.11 | C60: 25.994 | D60: 7481.47 | E60: 122.25 | F60: 65.676 | G60: 27.917 | H60: 31.359 | I60: 52750.94 | J60: 0.1091525834 | K60: 0.1143788048 | L60: 0.158314148 | M60: -0.1156044274 | N60: 0.0312956362 | O60: -0.0610769179 | P60: -0.002576335878 | Q60: -0.01083913474
A61: 2015-08-31 | B61: 162.16 | C61: 23.836 | D61: 7578.64 | E61: 123.63 | F61: 63.683 | G61: 28.415 | H61: 31.306 | I61: 51280.38 | J61: -0.114412102 | K61: -0.08301915827 | L61: 0.01298808924 | M61: 0.01128834356 | N61: -0.03034594068 | O61: 0.01783859297 | P61: -0.001690104914 | Q61: -0.02787741792
A62: 2015-09-30 | B62: 158.35 | C62: 26.416 | D62: 7630.4 | E62: 118.61 | F62: 57.103 | G62: 28.119 | H62: 30.48 | I62: 49824.59 | J62: -0.02349531327 | K62: 0.1082396375 | L62: 0.006829721428 | M62: -0.04060503114 | N62: -0.1033242781 | O62: -0.01041703326 | P62: -0.02638471858 | Q62: -0.02838883019
A63: 2015-10-31 | B63: 163.23 | C63: 26.092 | D63: 7117.47 | E63: 115.42 | F63: 54.143 | G63: 27.364 | H63: 29.39 | I63: 50271.65 | J63: 0.03081780865 | K63: -0.01226529376 | L63: -0.06722190187 | M63: -0.02689486553 | N63: -0.05183615572 | O63: -0.02685017248 | P63: -0.03576115486 | Q63: 0.008972677949
A64: 2015-11-30 | B64: 153.58 | C64: 22.159 | D64: 6642.94 | E64: 105.28 | F64: 58.594 | G64: 25.749 | H64: 30.191 | I64: 47915.91 | J64: -0.05911903449 | K64: -0.1507358577 | L64: -0.06667116265 | M64: -0.0878530584 | N64: 0.08220822636 | O64: -0.05901914925 | P64: 0.02725416808 | Q64: -0.04686020849
A65: 2015-12-31 | B65: 133.82 | C65: 21.727 | D65: 5420.37 | E65: 110.24 | F65: 58.525 | G65: 26.112 | H65: 26.608 | I65: 46467.38 | J65: -0.1286625863 | K65: -0.0194954646 | L65: -0.1840405001 | M65: 0.04711246201 | N65: -0.001177594976 | O65: 0.01409763486 | P65: -0.1186777516 | Q65: -0.03023066869
A66: 2016-01-31 | B66: 115.07 | C66: 22.649 | D66: 5234.45 | E66: 105.16 | F66: 53.695 | G66: 23.551 | H66: 25.295 | I66: 44290.05 | J66: -0.1401135854 | K66: 0.04243567911 | L66: -0.0343002415 | M66: -0.04608127721 | N66: -0.08252883383 | O66: -0.09807751225 | P66: -0.04934606133 | Q66: -0.04685717163
A67: 2016-02-29 | B67: 144.89 | C67: 22.561 | D67: 4937.32 | E67: 114.38 | F67: 55.136 | G67: 23.341 | H67: 26.984 | I67: 45430.29 | J67: 0.2591466064 | K67: -0.003885381253 | L67: -0.05676432099 | M67: 0.0876759224 | N67: 0.0268367632 | O67: -0.008916818819 | P67: 0.06677208935 | Q67: 0.02574483434
A68: 2016-03-31 | B68: 154.29 | C68: 25.209 | D68: 5366.66 | E68: 126.52 | F68: 63.745 | G68: 26.561 | H68: 27.844 | I68: 49017.35 | J68: =B68/B67-1 -> 0.06487680309 | K68: =C68/C67-1 -> 0.1173706839 | L68: =D68/D67-1 -> 0.08695810683 | M68: =E68/E67-1 -> 0.1061374366 | N68: =F68/F67-1 -> 0.1561411782 | O68: =G68/G67-1 -> 0.137954672 | P68: =H68/H67-1 -> 0.03187073822 | Q68: =I68/I67-1 -> 0.07895745328
A69: 2016-04-30 | B69: 164.2 | C69: 24.964 | D69: 5493.95 | E69: 119.25 | F69: 59.302 | G69: 23.37 | H69: 26.999 | I69: 47641.99 | J69: 0.06422969732 | K69: -0.00971875124 | L69: 0.023718663 | M69: -0.05746127095 | N69: -0.06969958428 | O69: -0.120138549 | P69: -0.0303476512 | Q69: -0.02805863638
A70: 2016-05-31 | B70: 164.68 | C70: 26.328 | D70: 5269.07 | E70: 114.57 | F70: 59.672 | G70: 23.657 | H70: 24.418 | I70: 45844.15 | J70: 0.002923264312 | K70: 0.0546386797 | L70: -0.04093229826 | M70: -0.03924528302 | N70: 0.006239249941 | O70: 0.01228070175 | P70: -0.09559613319 | Q70: -0.03773645895
A71: 2016-06-30 | B71: 154.19 | C71: 26.877 | D71: 4916.83 | E71: 111.83 | F71: 59.561 | G71: 22.242 | H71: 22.331 | I71: 44748.53 | J71: -0.0636992956 | K71: 0.02085232452 | L71: -0.06685050683 | M71: -0.02391551017 | N71: -0.001860168923 | O71: -0.05981316312 | P71: -0.08546973544 | Q71: -0.02389879625
A72: 2016-07-31 | B72: 171.68 | C72: 34.135 | D72: 4795.98 | E72: 100.65 | F72: 55.574 | G72: 22.739 | H72: 22.056 | I72: 46171.72 | J72: 0.1134314806 | K72: 0.2700450199 | L72: -0.0245788445 | M72: -0.09997317357 | N72: -0.06693977603 | O72: 0.02234511285 | P72: -0.01231471945 | Q72: 0.03180417323
A73: 2016-08-31 | B73: 177.89 | C73: 41.689 | D73: 4390.9 | E73: 107.11 | F73: 57.845 | G73: 25.386 | H73: 21.626 | I73: 47935.1 | J73: 0.03617194781 | K73: 0.2212977882 | L73: -0.08446240393 | M73: 0.06418281172 | N73: 0.04086443301 | O73: 0.1164079335 | P73: -0.0194958288 | Q73: 0.03819177626
A74: 2016-09-30 | B74: 173.01 | C74: 39.1 | D74: 3868.84 | E74: 100.93 | F74: 57.853 | G74: 24.946 | H74: 20.699 | I74: 47084.94 | J74: -0.02743268312 | K74: -0.06210271295 | L74: -0.1188958983 | M74: -0.05769769396 | N74: 0.000138300631 | O74: -0.01733238793 | P74: -0.04286506982 | Q74: -0.01773564674
A75: 2016-10-31 | B75: 194.61 | C75: 39.119 | D75: 5781.73 | E75: 98.774 | F75: 69.235 | G75: 26.255 | H75: 23.127 | I75: 49158.8 | J75: 0.1248482747 | K75: 0.0004859335038 | L75: 0.4944350245 | M75: -0.02136133954 | N75: 0.1967400135 | O75: 0.05247334242 | P75: 0.1173003527 | Q75: 0.04404508108
A76: 2016-11-30 | B76: 194.51 | C76: 46.8 | D76: 5673.76 | E76: 96.453 | F76: 68.034 | G76: 24.421 | H76: 25.106 | I76: 48618.64 | J76: -0.0005138482092 | K76: 0.1963495999 | L76: -0.01867434142 | M76: -0.02349808654 | N76: -0.0173467177 | O76: -0.06985336126 | P76: 0.08557097765 | Q76: -0.01098806317
A77: 2016-12-31 | B77: 198.95 | C77: 51.204 | D77: 5578.77 | E77: 102.65 | F77: 75.909 | G77: 26.886 | H77: 28.196 | I77: 51754.03 | J77: 0.02282658989 | K77: 0.0941025641 | L77: -0.01674198415 | M77: 0.06424890879 | N77: 0.1157509481 | O77: 0.1009377175 | P77: 0.1230781486 | Q77: 0.0644894633
A78: 2017-01-31 | B78: 201.93 | C78: 57.53 | D78: 5014.71 | E78: 110.4 | F78: 72.243 | G78: 29.304 | H78: 29.886 | I78: 55232.32 | J78: 0.01497863785 | K78: 0.1235450355 | L78: -0.1011083088 | M78: 0.07549926936 | N78: -0.04829466862 | O78: 0.0899352823 | P78: 0.0599375798 | Q78: 0.06720809954
A79: 2017-02-28 | B79: 220.4 | C79: 69.106 | D79: 5566.68 | E79: 114.2 | F79: 83.829 | G79: 31.796 | H79: 30.626 | I79: 58300.37 | J79: 0.09146734017 | K79: 0.2012167565 | L79: 0.1100701735 | M79: 0.03442028986 | N79: 0.1603753997 | O79: 0.08503958504 | P79: 0.02476075755 | Q79: 0.05554809213
A80: 2017-03-31 | B80: 232.62 | C80: 72.784 | D80: 6681.28 | E80: 107.79 | F80: 88.991 | G80: 30.631 | H80: 29.546 | I80: 57911.31 | J80: 0.0554446461 | K80: 0.05322258559 | L80: 0.2002270653 | M80: -0.0561295972 | N80: 0.06157773563 | O80: -0.03663982891 | P80: -0.03526415464 | Q80: -0.006673371027
A81: 2017-04-30 | B81: 219.33 | C81: 66.496 | D81: 6824.01 | E81: 114.69 | F81: 103.23 | G81: 33.717 | H81: 36.339 | I81: 61644.56 | J81: -0.05713180294 | K81: -0.08639261376 | L81: 0.02136267302 | M81: 0.06401335931 | N81: 0.1600049443 | O81: 0.1007476086 | P81: 0.2299126785 | Q81: 0.06446495512
A82: 2017-05-31 | B82: 205.26 | C82: 78.554 | D82: 6166.09 | E82: 112.61 | F82: 94.462 | G82: 34.883 | H82: 37.637 | I82: 60092.07 | J82: -0.06414991109 | K82: 0.1813342156 | L82: -0.09641251991 | M82: -0.01813584445 | N82: -0.08493654945 | O82: 0.03458196162 | P82: 0.03571919976 | Q82: -0.02518454183
A83: 2017-06-30 | B83: 219.92 | C83: 85.63 | D83: 7030.5 | E83: 109.13 | F83: 99.58 | G83: 32.924 | H83: 37.859 | I83: 61018.36 | J83: 0.07142161161 | K83: 0.09007816279 | L83: 0.140187704 | M83: -0.03090311695 | N83: 0.05418051703 | O83: -0.05615916062 | P83: 0.005898450992 | Q83: 0.0154145131
A84: 2017-07-31 | B84: 238.49 | C84: 86.088 | D84: 6883 | E84: 111.75 | F84: 97.221 | G84: 35.189 | H84: 37.604 | I84: 62595.76 | J84: 0.08443979629 | K84: 0.005348592783 | L84: -0.02098001565 | M84: 0.02400806378 | N84: -0.02368949588 | O84: 0.06879480015 | P84: -0.006735518635 | Q84: 0.0258512356
A85: 2017-08-31 | B85: 256.29 | C85: 83.002 | D85: 8586.45 | E85: 111.88 | F85: 107.79 | G85: 35.045 | H85: 41.178 | I85: 64973.76 | J85: 0.07463625309 | K85: -0.03584704024 | L85: 0.2474865611 | M85: 0.001163310962 | N85: 0.1087110809 | O85: -0.0040921879 | P85: 0.09504308052 | Q85: 0.03798979356
A86: 2017-09-30 | B86: 272.23 | C86: 115.7 | D86: 8068.49 | E86: 111.92 | F86: 111.26 | G86: 33.756 | H86: 40.278 | I86: 64289.69 | J86: 0.06219516953 | K86: 0.3939423146 | L86: -0.0603229507 | M86: 0.0003575259206 | N86: 0.03219222562 | O86: -0.03678128121 | P86: -0.02185633105 | Q86: -0.01052840408
A87: 2017-10-31 | B87: 269.22 | C87: 120.02 | D87: 8465.21 | E87: 103.96 | F87: 117.66 | G87: 37.023 | H87: 41.136 | I87: 64866.57 | J87: -0.01105682695 | K87: 0.03733794296 | L87: 0.04916905146 | M87: -0.07112223016 | N87: 0.05752291929 | O87: 0.09678279417 | P87: 0.02130195144 | Q87: 0.00897313395
A88: 2017-11-30 | B88: 236.58 | C88: 101.02 | D88: 8070.37 | E88: 111.92 | F88: 101.29 | G88: 40.415 | H88: 38.912 | I88: 62440.31 | J88: -0.1212391353 | K88: -0.1583069488 | L88: -0.04664267041 | M88: 0.07656791073 | N88: -0.1391296957 | O88: 0.0916187235 | P88: -0.05406456632 | Q88: -0.03740385841
A89: 2017-12-31 | B89: 281.11 | C89: 96.537 | D89: 8797.1 | E89: 113.23 | F89: 96.908 | G89: 42.335 | H89: 36.916 | I89: 63746.2 | J89: 0.1882238566 | K89: -0.04437735102 | L89: 0.09004915512 | M89: 0.01170478914 | N89: -0.04326192122 | O89: 0.0475071137 | P89: -0.05129523026 | Q89: 0.02091421391
A90: 2018-01-31 | B90: 283.87 | C90: 115.45 | D90: 9606.71 | E90: 118.83 | F90: 99.188 | G90: 43.625 | H90: 40.05 | I90: 66048.17 | J90: 0.009818220625 | K90: 0.1959145198 | L90: 0.09203146491 | M90: 0.04945685772 | N90: 0.02352746935 | O90: 0.03047124129 | P90: 0.08489543829 | Q90: 0.03611148586
A91: 2018-02-28 | B91: 248.55 | C91: 106.49 | D91: 8900.77 | E91: 115.82 | F91: 88.239 | G91: 41.151 | H91: 37.414 | I91: 61703.18 | J91: -0.1244231514 | K91: -0.0776093547 | L91: -0.07348405437 | M91: -0.0253303038 | N91: -0.1103863371 | O91: -0.05671060172 | P91: -0.06581772784 | Q91: -0.06578516861
A92: 2018-03-31 | B92: 230.01 | C92: 108.88 | D92: 8589.75 | E92: 107.81 | F92: 76.902 | G92: 38.638 | H92: 36.556 | I92: 58377.42 | J92: -0.0745926373 | K92: 0.02244342192 | L92: -0.03494304425 | M92: -0.06915903989 | N92: -0.1284806038 | O92: -0.06106777478 | P92: -0.02293259208 | Q92: -0.05389932901
A93: 2018-04-30 | B93: 255.46 | C93: 124.2 | D93: 9053.8 | E93: 102.21 | F93: 82.004 | G93: 39.976 | H93: 37.581 | I93: 59932.46 | J93: 0.1106473632 | K93: 0.1407053637 | L93: 0.05402369103 | M93: -0.05194323347 | N93: 0.0663441783 | O93: 0.03462912159 | P93: 0.02803917278 | Q93: 0.02663769656
A94: 2018-05-31 | B94: 269.07 | C94: 146.5 | D94: 9300.63 | E94: 97.759 | F94: 74.507 | G94: 35.867 | H94: 31.793 | I94: 57282.73 | J94: 0.0532764425 | K94: 0.1795491143 | L94: 0.02726258588 | M94: -0.04354759808 | N94: -0.09142236964 | O94: -0.102786672 | P94: -0.1540139964 | Q94: -0.04421193457
A95: 2018-06-30 | B95: 204.17 | C95: 161.03 | D95: 8377.48 | E95: 98.802 | F95: 76.847 | G95: 35.342 | H95: 34.131 | I95: 55954.44 | J95: -0.2412011744 | K95: 0.09918088737 | L95: -0.09925671702 | M95: 0.01066909441 | N95: 0.03140644503 | O95: -0.01463741043 | P95: 0.07353820023 | Q95: -0.02318831522
A96: 2018-07-31 | B96: 221.93 | C96: 196.56 | D96: 8861.27 | E96: 105.08 | F96: 87.825 | G96: 39.841 | H96: 36.775 | I96: 59964.47 | J96: 0.08698633492 | K96: 0.2206421164 | L96: 0.05774886959 | M96: 0.06354122386 | N96: 0.1428552839 | O96: 0.1272989644 | P96: 0.07746623304 | Q96: 0.07166598397
A97: 2018-08-31 | B97: 212.65 | C97: 205.02 | D97: 9129.34 | E97: 109.77 | F97: 93.135 | G97: 40.853 | H97: 39.105 | I97: 60201.08 | J97: -0.04181498671 | K97: 0.04304029304 | L97: 0.03025187135 | M97: 0.04463266083 | N97: 0.06046114432 | O97: 0.02540096885 | P97: 0.06335825969 | Q97: 0.003945836593
A98: 2018-09-30 | B98: 219.21 | C98: 186.41 | D98: 8554.11 | E98: 99.77 | F98: 95.751 | G98: 41.53 | H98: 36.934 | I98: 58974.76 | J98: 0.0308488126 | K98: -0.09077163204 | L98: -0.06300893602 | M98: -0.09109957183 | N98: 0.02808825898 | O98: 0.01657161041 | P98: -0.05551719729 | Q98: -0.02037039867
A99: 2018-10-31 | B99: 166.4 | C99: 157.55 | D99: 7785.48 | E99: 98.36 | F99: 87.447 | G99: 38.655 | H99: 36.45 | I99: 55312.71 | J99: -0.2409105424 | K99: -0.1548200204 | L99: -0.08985505213 | M99: -0.01413250476 | N99: -0.08672494282 | O99: -0.06922706477 | P99: -0.0131044566 | Q99: -0.06209520819
A100: 2018-11-30 | B100: 209.44 | C100: 141.52 | D100: 7755.73 | E100: 103.15 | F100: 104.38 | G100: 39.604 | H100: 39.883 | I100: 58203.39 | J100: 0.2586538462 | K100: -0.1017454776 | L100: -0.003821215904 | M100: 0.04869865799 | N100: 0.1936372889 | O100: 0.02455051093 | P100: 0.09418381344 | Q100: 0.05226068294
A101: 2018-12-31 | B101: 192.61 | C101: 144.91 | D101: 7785.48 | E101: 102.4 | F101: 102.53 | G101: 38.21 | H101: 40.842 | I101: 57690.5 | J101: -0.08035714286 | K101: 0.02395421142 | L101: 0.003835873606 | M101: -0.007270964615 | N101: -0.01772370186 | O101: -0.0351984648 | P101: 0.0240453326 | Q101: -0.008812029677
A102: 2019-01-31 | B102: 178.16 | C102: 189.09 | D102: 8301.21 | E102: 103.9 | F102: 99.257 | G102: 38.249 | H102: 41.549 | I102: 60367.42 | J102: -0.07502206531 | K102: 0.3048788903 | L102: 0.06624254381 | M102: 0.0146484375 | N102: -0.03192236419 | O102: 0.001020675216 | P102: 0.01731061163 | Q102: 0.04640140058
A103: 2019-02-28 | B103: 182.84 | C103: 189.19 | D103: 8087.97 | E103: 106.44 | F103: 96.604 | G103: 36.826 | H103: 37.958 | I103: 59903.7 | J103: 0.02626852268 | K103: 0.0005288486964 | L103: -0.02568782141 | M103: 0.02444658325 | N103: -0.02672859345 | O103: -0.03720358702 | P103: -0.08642807288 | Q103: -0.007681626944
A104: 2019-03-31 | B104: 214.43 | C104: 199.05 | D104: 8256.58 | E104: 103.34 | F104: 92.566 | G104: 37.348 | H104: 37.678 | I104: 59668.03 | J104: 0.1727740101 | K104: 0.0521169195 | L104: 0.02084701105 | M104: -0.02912438933 | N104: -0.04179951141 | O104: 0.01417476783 | P104: -0.007376574108 | Q104: -0.00393414764
A105: 2019-04-30 | B105: 206.65 | C105: 213.88 | D105: 8494.6 | E105: 106.82 | F105: 92.832 | G105: 37.987 | H105: 39.074 | I105: 60145.5 | J105: -0.03628223663 | K105: 0.07450389349 | L105: 0.02882791664 | M105: 0.03367524676 | N105: 0.002873625305 | O105: 0.0171093499 | P105: 0.03705079887 | Q105: 0.008002107661
A106: 2019-05-31 | B106: 156.14 | C106: 207.8 | D106: 7274.71 | E106: 99.82 | F106: 91.75 | G106: 38.045 | H106: 38.544 | I106: 57909.95 | J106: -0.2444229373 | K106: -0.02842715541 | L106: -0.1436077037 | M106: -0.06553079948 | N106: -0.01165546363 | O106: 0.001526838129 | P106: -0.01356400676 | Q106: -0.03716903176
A107: 2019-06-30 | B107: 167.99 | C107: 215.3 | D107: 7640 | E107: 105.03 | F107: 85.304 | G107: 41.453 | H107: 40.618 | I107: 60187.43 | J107: 0.07589342897 | K107: 0.03609239654 | L107: 0.05021368549 | M107: 0.05219394911 | N107: -0.07025613079 | O107: 0.08957813116 | P107: 0.05380863429 | Q107: 0.03932795659
A108: 2019-07-31 | B108: 149.46 | C108: 230 | D108: 7845 | E108: 103.15 | F108: 95.775 | G108: 40.87 | H108: 38.897 | I108: 59670.6 | J108: -0.1103041848 | K108: 0.06827682304 | L108: 0.02683246073 | M108: -0.01789964772 | N108: 0.1227492263 | O108: -0.01406412081 | P108: -0.04237037767 | Q108: -0.008587008949
A109: 2019-08-31 | B109: 122.86 | C109: 253 | D109: 7430 | E109: 97.34 | F109: 89.164 | G109: 39.15 | H109: 37.39 | I109: 56739.53 | J109: -0.1779740399 | K109: 0.1 | L109: -0.05289993627 | M109: -0.05632573921 | N109: -0.06902636387 | O109: -0.04208465867 | P109: -0.03874334782 | Q109: -0.04912084008
A110: 2019-09-30 | B110: 138.3 | C110: 243.4 | D110: 8600 | E110: 102.4 | F110: 97.093 | G110: 39.32 | H110: 37.38 | I110: 57320.3 | J110: 0.125671496 | K110: -0.03794466403 | L110: 0.1574697174 | M110: 0.05198274091 | N110: 0.08892602396 | O110: 0.004342273308 | P110: -0.0002674511902 | Q110: 0.01023572102
A111: 2019-10-31 | B111: 111.6 | C111: 252.1 | D111: 8155 | E111: 107.8 | F111: 102.7 | G111: 38.12 | H111: 36.95 | I111: 57783.02 | J111: -0.1930585683 | K111: 0.03574363188 | L111: -0.05174418605 | M111: 0.052734375 | N111: 0.05774875635 | O111: -0.03051881994 | P111: -0.0115034778 | Q111: 0.008072532768
A112: 2019-11-30 | B112: 112.4 | C112: 262.5 | D112: 8700 | E112: 104.8 | F112: 91.387 | G112: 36.14 | H112: 38.7 | I112: 57502.14 | J112: 0.007168458781 | K112: 0.04125347084 | L112: 0.06683016554 | M112: -0.02782931354 | N112: -0.1101557936 | O112: -0.0519412382 | P112: 0.04736129905 | Q112: -0.004860943578
A113: 2019-12-31 | B113: 110 | C113: 279.5 | D113: 8820 | E113: 100.45 | F113: 84.423 | G113: 34.46 | H113: 40.03 | I113: 57832.88 | J113: -0.02135231317 | K113: 0.06476190476 | L113: 0.01379310345 | M113: -0.04150763359 | N113: -0.07620339873 | O113: -0.04648588821 | P113: 0.03436692506 | Q113: 0.005751785934
A114: 2020-01-31 | B114: 96.95 | C114: 281.6 | D114: 8465 | E114: 98.98 | F114: 74.428 | G114: 34.21 | H114: 40.22 | I114: 56681.27 | J114: -0.1186363636 | K114: 0.007513416816 | L114: -0.04024943311 | M114: -0.01463414634 | N114: -0.1183919074 | O114: -0.00725478816 | P114: 0.00474644017 | Q114: -0.01991272093
A115: 2020-02-29 | B115: 71.95 | C115: 278.5 | D115: 6900 | E115: 88.04 | F115: 57.685 | G115: 31.29 | H115: 34.75 | I115: 49276.54 | J115: -0.2578648788 | K115: -0.01100852273 | L115: -0.1848789132 | M115: -0.1105273793 | N115: -0.2249556618 | O115: -0.08535515931 | P115: -0.1360019891 | Q115: -0.1306380397
A116: 2020-03-31 | B116: 29.98 | C116: 289.1 | D116: 5230 | E116: 56.14 | F116: 54.793 | G116: 22.62 | H116: 31.33 | I116: 41624.62 | J116: -0.5833217512 | K116: 0.03806104129 | L116: -0.2420289855 | M116: -0.3623353021 | N116: -0.05013435035 | O116: -0.2770853308 | P116: -0.09841726619 | Q116: -0.1552852534
A117: 2020-04-30 | B117: 51.82 | C117: 357.6 | D117: 6500 | E117: 51.98 | F117: 61.345 | G117: 22.01 | H117: 30.28 | I117: 46117 | J117: 0.7284856571 | K117: 0.2369422345 | L117: 0.2428298279 | M117: -0.07410046313 | N117: 0.1195773183 | O117: -0.02696728559 | P117: -0.03351420364 | Q117: 0.1079260303
A118: 2020-05-31 | B118: 48.41 | C118: 403.8 | D118: 6860 | E118: 52.56 | F118: 65.673 | G118: 22.3 | H118: 29.84 | I118: 48127.64 | J118: -0.06580470861 | K118: 0.1291946309 | L118: 0.05538461538 | M118: 0.01115813775 | N118: 0.07055179721 | O118: 0.01317582917 | P118: -0.01453104359 | Q118: 0.04359867294
A119: 2020-06-30 | B119: 59.68 | C119: 394.9 | D119: 6010 | E119: 53.84 | F119: 61.6 | G119: 22.92 | H119: 28.93 | I119: 49569.17 | J119: 0.2328031398 | K119: -0.02204061417 | L119: -0.1239067055 | M119: 0.02435312024 | N119: -0.06201939914 | O119: 0.02780269058 | P119: -0.03049597855 | Q119: 0.02995222704
A120: 2020-07-31 | B120: 55.46 | C120: 402 | D120: 6900 | E120: 50.58 | F120: 53.28 | G120: 21.75 | H120: 27.02 | I120: 50468.16 | J120: -0.07071045576 | K120: 0.01797923525 | L120: 0.1480865225 | M120: -0.06054977712 | N120: -0.1350649351 | O120: -0.05104712042 | P120: -0.06602143104 | Q120: 0.01813607127
A121: 2020-08-31 | B121: 57.54 | C121: 438.5 | D121: 7185 | E121: 52.3 | F121: 50.64 | G121: 21.57 | H121: 27.17 | I121: 51629.45 | J121: 0.03750450775 | K121: 0.0907960199 | L121: 0.04130434783 | M121: 0.03400553578 | N121: -0.04954954955 | O121: -0.008275862069 | P121: 0.005551443375 | Q121: 0.0230103495
